[Event "FIDE World Rapid Chess Championship 2021"]
[White "Blanco Acevedo, Cristobal Jose"]
[Black "Czarnota, Pawel"]
[WhiteFideId "3900525"]
[BlackFideId "1121219"]
[WhiteElo "2289"]
[BlackElo "2511"]
[Result "0-1"]
[Round "05"]
[TimeControl "900+10"]
[Date "2021.12.26"]
[WhiteClock "0:00:00"]
[BlackClock "0:06:57"]

1. e4 {[%clk 0:00:00]}  c5 {[%clk 0:06:57]} 2. Nf3 {[%clk 0:00:00]}  d6 {[%clk 0:06:57]} 3. d4 {[%clk 0:00:00]}  cxd4 {[%clk 0:06:57]} 4. Nxd4 {[%clk 0:00:00]}  Nf6 {[%clk 0:06:57]} 5. Nc3 {[%clk 0:00:00]}  Nc6 {[%clk 0:06:57]} 6. Be2 {[%clk 0:00:00]}  e5 {[%clk 0:06:57]} 7. Nf3 {[%clk 0:00:00]}  h6 {[%clk 0:06:57]} 8. O-O {[%clk 0:00:00]}  Be7 {[%clk 0:06:57]} 9. Re1 {[%clk 0:00:00]}  O-O {[%clk 0:06:57]} 10. Bf1 {[%clk 0:00:00]}  Bg4 {[%clk 0:06:57]} 11. h3 {[%clk 0:00:00]}  Bh5 {[%clk 0:06:57]} 12. Be2 {[%clk 0:00:00]}  Bg6 {[%clk 0:06:57]} 13. Bc4 {[%clk 0:00:00]}  Rc8 {[%clk 0:06:57]} 14. a3 {[%clk 0:00:00]}  Na5 {[%clk 0:06:57]} 15. Bd5 {[%clk 0:00:00]}  a6 {[%clk 0:06:57]} 16. Qe2 {[%clk 0:00:00]}  Qc7 {[%clk 0:06:57]} 17. Ba2 {[%clk 0:00:00]}  Nc4 {[%clk 0:06:57]} 18. Bb3 {[%clk 0:00:00]}  b5 {[%clk 0:06:57]} 19. Nh4 {[%clk 0:00:00]}  Bh7 {[%clk 0:06:57]} 20. Nf5 {[%clk 0:00:00]}  Bxf5 {[%clk 0:06:57]} 21. exf5 {[%clk 0:00:00]}  Rfe8 {[%clk 0:06:57]} 22. Qf3 {[%clk 0:00:00]}  Qc6 {[%clk 0:06:57]} 23. Qxc6 {[%clk 0:00:00]}  Rxc6 {[%clk 0:06:57]} 24. f4 {[%clk 0:00:00]}  Bf8 {[%clk 0:06:57]} 25. a4 {[%clk 0:00:00]}  b4 {[%clk 0:06:57]} 26. Na2 {[%clk 0:00:00]}  Rb8 {[%clk 0:06:57]} 27. Rb1 {[%clk 0:00:00]}  e4 {[%clk 0:06:57]} 28. g4 {[%clk 0:00:00]}  d5 {[%clk 0:06:57]} 29. Kg2 {[%clk 0:00:00]}  Na5 {[%clk 0:06:57]} 30. g5 {[%clk 0:00:00]}  Nxb3 {[%clk 0:06:57]} 31. cxb3 {[%clk 0:00:00]}  Rc2+ {[%clk 0:06:57]} 32. Kg3 {[%clk 0:00:00]}  Nh5+ {[%clk 0:06:57]} 33. Kg4 {[%clk 0:00:00]}  g6 {[%clk 0:06:57]} 34. fxg6 {[%clk 0:00:00]}  fxg6 {[%clk 0:06:57]} 35. f5 {[%clk 0:00:00]}  Rg2+ {[%clk 0:06:57]} 36. Kh4 {[%clk 0:00:00]}  Ng7 {[%clk 0:06:57]} 37. fxg6 {[%clk 0:00:00]}  Be7 {[%clk 0:06:57]} 38. Ra1 {[%clk 0:00:00]} 0-1


[Site "http://www.Chess.com"]

[Event "FIDE World Rapid Chess Championship 2021"]
[White "Sanal, Vahap"]
[Black "Tologontegin, Semetey"]
[WhiteFideId "6300545"]
[BlackFideId "13800574"]
[WhiteElo "2509"]
[BlackElo "2300"]
[Result "1-0"]
[Round "05"]
[TimeControl "900+10"]
[Date "2021.12.26"]
[WhiteClock "0:06:55"]
[BlackClock "0:00:12"]

1. e4 {[%clk 0:06:55]}  c5 {[%clk 0:00:12]} 2. Nc3 {[%clk 0:06:55]}  d6 {[%clk 0:00:12]} 3. Nge2 {[%clk 0:06:55]}  g6 {[%clk 0:00:12]} 4. d4 {[%clk 0:06:55]}  cxd4 {[%clk 0:00:12]} 5. Nxd4 {[%clk 0:06:55]}  Nf6 {[%clk 0:00:12]} 6. Be3 {[%clk 0:06:55]}  Bg7 {[%clk 0:00:12]} 7. f3 {[%clk 0:06:55]}  O-O {[%clk 0:00:12]} 8. Qd2 {[%clk 0:06:55]}  Nc6 {[%clk 0:00:12]} 9. O-O-O {[%clk 0:06:55]}  d5 {[%clk 0:00:12]} 10. exd5 {[%clk 0:06:55]}  Nxd5 {[%clk 0:00:12]} 11. Nxc6 {[%clk 0:06:55]}  bxc6 {[%clk 0:00:12]} 12. Bd4 {[%clk 0:06:55]}  e5 {[%clk 0:00:12]} 13. Bc5 {[%clk 0:06:55]}  Be6 {[%clk 0:00:12]} 14. Ne4 {[%clk 0:06:55]}  Re8 {[%clk 0:00:12]} 15. h4 {[%clk 0:06:55]}  h6 {[%clk 0:00:12]} 16. h5 {[%clk 0:06:55]}  g5 {[%clk 0:00:12]} 17. g4 {[%clk 0:06:55]}  Qc7 {[%clk 0:00:12]} 18. Bc4 {[%clk 0:06:55]}  Red8 {[%clk 0:00:12]} 19. Qf2 {[%clk 0:06:55]}  Bf8 {[%clk 0:00:12]} 20. Bxf8 {[%clk 0:06:55]}  Kxf8 {[%clk 0:00:12]} 21. Nc5 {[%clk 0:06:55]}  Qe7 {[%clk 0:00:12]} 22. Bb3 {[%clk 0:06:55]}  Nf4 {[%clk 0:00:12]} 23. Rhe1 {[%clk 0:06:55]}  Bxb3 {[%clk 0:00:12]} 24. axb3 {[%clk 0:06:55]}  Rxd1+ {[%clk 0:00:12]} 25. Rxd1 {[%clk 0:06:55]}  Rd8 {[%clk 0:00:12]} 26. Rxd8+ {[%clk 0:06:55]}  Qxd8 {[%clk 0:00:12]} 27. Ne4 {[%clk 0:06:55]}  Qd4 {[%clk 0:00:12]} 28. Qe1 {[%clk 0:06:55]}  Ng2 {[%clk 0:00:12]} 29. Qd1 {[%clk 0:06:55]}  Nf4 {[%clk 0:00:12]} 30. Ng3 {[%clk 0:06:55]}  Ne6 {[%clk 0:00:12]} 31. Nf5 {[%clk 0:06:55]}  Qf4+ {[%clk 0:00:12]} 32. Qd2 {[%clk 0:06:55]}  Qxf3 {[%clk 0:00:12]} 33. Qd6+ {[%clk 0:06:55]}  Kg8 {[%clk 0:00:12]} 34. Qxe5 {[%clk 0:06:55]}  Kh7 {[%clk 0:00:12]} 35. Ne3 {[%clk 0:06:55]}  Qe2 {[%clk 0:00:12]} 36. Kb1 {[%clk 0:06:55]}  c5 {[%clk 0:00:12]} 37. c3 {[%clk 0:06:55]}  Qd3+ {[%clk 0:00:12]} 38. Kc1 {[%clk 0:06:55]}  Qe2 {[%clk 0:00:12]} 39. Qe4+ {[%clk 0:06:55]}  Kg8 {[%clk 0:00:12]} 40. Kb1 {[%clk 0:06:55]}  Qe1+ {[%clk 0:00:12]} 41. Ka2 {[%clk 0:06:55]}  Qe2 {[%clk 0:00:12]} 42. Qa8+ {[%clk 0:06:55]}  Kh7 {[%clk 0:00:12]} 43. Qe4+ {[%clk 0:06:55]}  Kg8 {[%clk 0:00:12]} 44. c4 {[%clk 0:06:55]}  Qe1 {[%clk 0:00:12]} 45. Qa8+ {[%clk 0:06:55]}  Kh7 {[%clk 0:00:12]} 46. Qe4+ {[%clk 0:06:55]}  Kg8 {[%clk 0:00:12]} 47. b4 {[%clk 0:06:55]}  cxb4 {[%clk 0:00:12]} 48. Qa8+ {[%clk 0:06:55]}  Kh7 {[%clk 0:00:12]} 49. Qxa7 {[%clk 0:06:55]}  Qf2 {[%clk 0:00:12]} 50. Kb3 {[%clk 0:06:55]}  Qf4 {[%clk 0:00:12]} 51. Nf5 {[%clk 0:06:55]}  Kg8 {[%clk 0:00:12]} 52. Nxh6+ {[%clk 0:06:55]}  Kg7 {[%clk 0:00:12]} 53. Nf5+ {[%clk 0:06:55]}  Kg8 {[%clk 0:00:12]} 54. Qe7 {[%clk 0:06:55]}  Qf3+ {[%clk 0:00:12]} 55. Kxb4 {[%clk 0:06:55]} 1-0


[Site "http://www.Chess.com"]

[Event "FIDE World Rapid Chess Championship 2021"]
[White "Kolosowski, Mateusz"]
[Black "Gagunashvili, Merab"]
[WhiteFideId "1129708"]
[BlackFideId "13601652"]
[WhiteElo "2371"]
[BlackElo "2538"]
[Result "0-1"]
[Round "05"]
[TimeControl "900+10"]
[Date "2021.12.26"]
[WhiteClock "0:00:19"]
[BlackClock "0:02:07"]

1. e4 {[%clk 0:00:28]}  d6 {[%clk 0:01:06]} 2. d4 {[%clk 0:00:28]}  Nf6 {[%clk 0:01:06]} 3. Nc3 {[%clk 0:00:28]}  e5 {[%clk 0:01:06]} 4. Nge2 {[%clk 0:00:28]}  Be7 {[%clk 0:01:06]} 5. h3 {[%clk 0:00:28]}  O-O {[%clk 0:01:06]} 6. g4 {[%clk 0:00:28]}  exd4 {[%clk 0:01:06]} 7. Nxd4 {[%clk 0:00:28]}  d5 {[%clk 0:01:06]} 8. e5 {[%clk 0:00:28]}  Nfd7 {[%clk 0:01:06]} 9. Nxd5 {[%clk 0:00:28]}  Nxe5 {[%clk 0:01:06]} 10. Bg2 {[%clk 0:00:28]}  Bc5 {[%clk 0:01:06]} 11. Nb3 {[%clk 0:00:28]}  Bd6 {[%clk 0:01:06]} 12. O-O {[%clk 0:00:28]}  Ng6 {[%clk 0:01:06]} 13. f4 {[%clk 0:00:28]}  c6 {[%clk 0:01:06]} 14. Nc3 {[%clk 0:00:28]}  Qc7 {[%clk 0:01:06]} 15. Qd2 {[%clk 0:00:28]}  f5 {[%clk 0:01:06]} 16. g5 {[%clk 0:00:28]}  Na6 {[%clk 0:01:06]} 17. Qf2 {[%clk 0:00:28]}  Be6 {[%clk 0:01:06]} 18. Be3 {[%clk 0:00:28]}  Bc4 {[%clk 0:01:06]} 19. h4 {[%clk 0:00:28]}  Bxf1 {[%clk 0:01:06]} 20. Rxf1 {[%clk 0:00:28]}  Rae8 {[%clk 0:01:06]} 21. h5 {[%clk 0:00:28]}  Rxe3 {[%clk 0:01:06]} 22. Qxe3 {[%clk 0:00:28]}  Nxf4 {[%clk 0:01:06]} 23. h6 {[%clk 0:00:28]}  Nxg2 {[%clk 0:01:06]} 24. Kxg2 {[%clk 0:00:28]}  Qe7 {[%clk 0:01:06]} 25. Qxe7 {[%clk 0:00:28]}  Bxe7 {[%clk 0:01:06]} 26. hxg7 {[%clk 0:00:28]}  Kxg7 {[%clk 0:01:06]} 27. Nd4 {[%clk 0:00:28]}  Kg6 {[%clk 0:01:06]} 28. Ne6 {[%clk 0:00:28]}  Re8 {[%clk 0:01:06]} 29. Ne2 {[%clk 0:00:28]}  Bxg5 {[%clk 0:01:06]} 30. N2d4 {[%clk 0:00:28]}  c5 {[%clk 0:01:06]} 31. Nxg5 {[%clk 0:00:28]}  Kxg5 {[%clk 0:01:06]} 32. Nf3+ {[%clk 0:00:28]}  Kf6 {[%clk 0:01:06]} 33. Kf2 {[%clk 0:00:28]}  Nb4 {[%clk 0:01:06]} 34. Rc1 {[%clk 0:00:28]}  Nc6 {[%clk 0:01:06]} 35. Rh1 {[%clk 0:00:28]}  Re7 {[%clk 0:01:06]} 36. Rh6+ {[%clk 0:00:28]}  Kg7 {[%clk 0:01:06]} 37. Rd6 {[%clk 0:00:28]}  Kf8 {[%clk 0:01:06]} 38. Rd5 {[%clk 0:00:28]}  b6 {[%clk 0:01:06]} 39. c3 {[%clk 0:00:28]}  f4 {[%clk 0:01:06]} 40. b3 {[%clk 0:00:28]}  Ke8 {[%clk 0:01:06]} 41. Nh4 {[%clk 0:00:28]}  Rd7 {[%clk 0:01:06]} 42. Rh5 {[%clk 0:00:28]}  Nd8 {[%clk 0:01:06]} 43. Rh6 {[%clk 0:00:28]}  Rf7 {[%clk 0:01:06]} 44. Kf3 {[%clk 0:00:28]}  Kd7 {[%clk 0:01:06]} 45. Ke4 {[%clk 0:00:28]}  Ne6 {[%clk 0:01:06]} 46. Nf3 {[%clk 0:00:28]}  Rg7 {[%clk 0:01:06]} 47. Kd5 {[%clk 0:00:28]}  Nf8 {[%clk 0:01:06]} 48. Ne5+ {[%clk 0:00:28]}  Kc7 {[%clk 0:01:06]} 49. Rf6 {[%clk 0:00:28]}  Ng6 {[%clk 0:01:06]} 50. Nd3 {[%clk 0:00:28]}  Rd7+ {[%clk 0:01:06]} 51. Ke4 {[%clk 0:00:28]}  Re7+ {[%clk 0:01:06]} 52. Kd5 {[%clk 0:00:28]}  Kd7 {[%clk 0:01:06]} 53. b4 {[%clk 0:00:28]}  cxb4 {[%clk 0:01:06]} 54. cxb4 {[%clk 0:00:28]}  Ke8 {[%clk 0:01:06]} 55. Nxf4 {[%clk 0:00:28]}  Nxf4+ {[%clk 0:01:06]} 56. Rxf4 {[%clk 0:00:28]}  h5 {[%clk 0:01:06]} 57. Rh4 {[%clk 0:00:28]}  Rh7 {[%clk 0:01:06]} 58. Ke6 {[%clk 0:00:28]}  Rh6+ {[%clk 0:01:06]} 59. Kf5 {[%clk 0:00:28]}  Kd7 {[%clk 0:01:06]} 60. Ke5 {[%clk 0:00:28]}  Kc6 {[%clk 0:01:06]} 61. a4 {[%clk 0:00:28]}  a6 {[%clk 0:01:06]} 62. Rc4+ {[%clk 0:00:28]}  Kd7 {[%clk 0:01:06]} 63. Rh4 {[%clk 0:00:43]}  Ke7 {[%clk 0:01:23]} 64. b5 {[%clk 0:00:43]}  a5 {[%clk 0:01:23]} 65. Kf5 {[%clk 0:00:43]}  Kd6 {[%clk 0:01:23]} 66. Rc4 {[%clk 0:00:43]}  Kd5 {[%clk 0:01:23]} 67. Rc8 {[%clk 0:00:43]}  h4 {[%clk 0:01:23]} 68. Kg5 {[%clk 0:00:43]}  Rh7 {[%clk 0:01:23]} 69. Kg6 {[%clk 0:00:43]}  Re7 {[%clk 0:01:23]} 70. Rh8 {[%clk 0:00:43]}  Re4 {[%clk 0:01:23]} 71. Rd8+ {[%clk 0:00:43]}  Kc5 {[%clk 0:01:23]} 72. Rc8+ {[%clk 0:00:43]}  Kb4 {[%clk 0:01:23]} 73. Kf5 {[%clk 0:00:19]}  Rc4 {[%clk 0:02:07]} 74. Rc6 {[%clk 0:00:19]}  h3 {[%clk 0:02:07]} 75. Rxb6 {[%clk 0:00:19]}  Rh4 {[%clk 0:02:07]} 0-1


[Site "http://www.Chess.com"]

[Event "FIDE World Rapid Chess Championship 2021"]
[White "Zilka, Stepan"]
[Black "Nasuta, Grzegorz"]
[WhiteFideId "315303"]
[BlackFideId "1141686"]
[WhiteElo "2474"]
[BlackElo "2345"]
[Result "1/2-1/2"]
[Round "05"]
[TimeControl "900+10"]
[Date "2021.12.26"]
[WhiteClock "0:00:00"]
[BlackClock "0:00:17"]

1. d4 {[%clk 0:00:00]}  d5 {[%clk 0:00:17]} 2. c4 {[%clk 0:00:00]}  c6 {[%clk 0:00:17]} 3. Nf3 {[%clk 0:00:00]}  Nf6 {[%clk 0:00:17]} 4. Nc3 {[%clk 0:00:00]}  dxc4 {[%clk 0:00:17]} 5. a4 {[%clk 0:00:00]}  Bf5 {[%clk 0:00:17]} 6. Ne5 {[%clk 0:00:00]}  Nbd7 {[%clk 0:00:17]} 7. Nxc4 {[%clk 0:00:00]}  Nb6 {[%clk 0:00:17]} 8. Ne5 {[%clk 0:00:00]}  a5 {[%clk 0:00:17]} 9. g3 {[%clk 0:00:00]}  e6 {[%clk 0:00:17]} 10. Bg2 {[%clk 0:00:00]}  Bb4 {[%clk 0:00:17]} 11. O-O {[%clk 0:00:00]}  O-O {[%clk 0:00:17]} 12. Bf4 {[%clk 0:00:00]}  h6 {[%clk 0:00:17]} 13. Rc1 {[%clk 0:00:00]}  Nfd5 {[%clk 0:00:17]} 14. Bd2 {[%clk 0:00:00]}  Nf6 {[%clk 0:00:17]} 15. e3 {[%clk 0:00:00]}  Nfd7 {[%clk 0:00:17]} 16. Nxd7 {[%clk 0:00:00]}  Qxd7 {[%clk 0:00:17]} 17. Qb3 {[%clk 0:00:00]}  e5 {[%clk 0:00:17]} 18. Rfd1 {[%clk 0:00:00]}  exd4 {[%clk 0:00:17]} 19. exd4 {[%clk 0:00:00]}  Bg4 {[%clk 0:00:17]} 20. Re1 {[%clk 0:00:00]}  Be6 {[%clk 0:00:17]} 21. Qc2 {[%clk 0:00:00]}  Rad8 {[%clk 0:00:17]} 22. Bf1 {[%clk 0:00:00]}  Bf5 {[%clk 0:00:17]} 23. Qb3 {[%clk 0:00:00]}  Bh3 {[%clk 0:00:17]} 24. Bxh3 {[%clk 0:00:00]}  Qxh3 {[%clk 0:00:17]} 25. Re4 {[%clk 0:00:00]}  Rfe8 {[%clk 0:00:17]} 26. Rce1 {[%clk 0:00:00]}  Rxe4 {[%clk 0:00:17]} 27. Nxe4 {[%clk 0:00:00]}  Rxd4 {[%clk 0:00:17]} 28. Bc3 {[%clk 0:00:00]}  Rd7 {[%clk 0:00:17]} 29. Bxb4 {[%clk 0:00:00]}  axb4 {[%clk 0:00:17]} 30. Nc5 {[%clk 0:00:00]}  Rd5 {[%clk 0:00:17]} 31. Qxb4 {[%clk 0:00:00]}  Nd7 {[%clk 0:00:17]} 32. Nxd7 {[%clk 0:00:00]}  Qxd7 {[%clk 0:00:17]} 33. b3 {[%clk 0:00:00]}  Rd1 {[%clk 0:00:17]} 1/2-1/2


[Site "http://www.Chess.com"]

[Event "FIDE World Rapid Chess Championship 2021"]
[White "Postny, Evgeny"]
[Black "Lubczynski, Rafal"]
[WhiteFideId "2804344"]
[BlackFideId "1126091"]
[WhiteElo "2454"]
[BlackElo "2289"]
[Result "1-0"]
[Round "05"]
[TimeControl "900+10"]
[Date "2021.12.26"]
[WhiteClock "0:00:01"]
[BlackClock "0:00:34"]

1. d4 {[%clk 0:00:01]}  d5 {[%clk 0:00:34]} 2. c4 {[%clk 0:00:01]}  c6 {[%clk 0:00:34]} 3. Nf3 {[%clk 0:00:01]}  Nf6 {[%clk 0:00:34]} 4. Nc3 {[%clk 0:00:01]}  a6 {[%clk 0:00:34]} 5. c5 {[%clk 0:00:01]}  Bf5 {[%clk 0:00:34]} 6. Bf4 {[%clk 0:00:01]}  Nbd7 {[%clk 0:00:34]} 7. h3 {[%clk 0:00:01]}  h6 {[%clk 0:00:34]} 8. e3 {[%clk 0:00:01]}  e6 {[%clk 0:00:34]} 9. Be2 {[%clk 0:00:01]}  Be7 {[%clk 0:00:34]} 10. O-O {[%clk 0:00:01]}  O-O {[%clk 0:00:34]} 11. b4 {[%clk 0:00:01]}  Qc8 {[%clk 0:00:34]} 12. a4 {[%clk 0:00:01]}  Bd8 {[%clk 0:00:34]} 13. b5 {[%clk 0:00:01]}  axb5 {[%clk 0:00:34]} 14. axb5 {[%clk 0:00:01]}  Rxa1 {[%clk 0:00:34]} 15. Qxa1 {[%clk 0:00:01]}  Bc7 {[%clk 0:00:34]} 16. Bxc7 {[%clk 0:00:01]}  Qxc7 {[%clk 0:00:34]} 17. Qa7 {[%clk 0:00:01]}  Rc8 {[%clk 0:00:34]} 18. Ra1 {[%clk 0:00:01]}  g5 {[%clk 0:00:34]} 19. b6 {[%clk 0:00:01]}  Qb8 {[%clk 0:00:34]} 20. Qxb8 {[%clk 0:00:01]}  Rxb8 {[%clk 0:00:34]} 21. Ra7 {[%clk 0:00:01]}  e5 {[%clk 0:00:34]} 22. Nd2 {[%clk 0:00:01]}  exd4 {[%clk 0:00:34]} 23. exd4 {[%clk 0:00:01]}  Nf8 {[%clk 0:00:34]} 24. Nb3 {[%clk 0:00:01]}  Ne6 {[%clk 0:00:34]} 25. Na5 {[%clk 0:00:01]}  Nxd4 {[%clk 0:00:34]} 26. Nxb7 {[%clk 0:00:01]}  Nd7 {[%clk 0:00:34]} 27. Bd1 {[%clk 0:00:01]}  Kg7 {[%clk 0:00:34]} 28. Na2 {[%clk 0:00:01]}  Bd3 {[%clk 0:00:34]} 29. Nb4 {[%clk 0:00:01]}  Bb5 {[%clk 0:00:34]} 30. Bg4 {[%clk 0:00:01]}  Nxc5 {[%clk 0:00:34]} 31. Nxc5 {[%clk 0:00:01]}  Rxb6 {[%clk 0:00:34]} 32. Nd7 {[%clk 0:00:01]}  c5 {[%clk 0:00:34]} 33. Nxb6 {[%clk 0:00:01]}  cxb4 {[%clk 0:00:34]} 34. Nxd5 {[%clk 0:00:01]}  b3 {[%clk 0:00:34]} 35. Nc3 {[%clk 0:00:01]} 1-0


[Site "http://www.Chess.com"]

[Event "FIDE World Rapid Chess Championship 2021"]
[White "Blohberger, Felix"]
[Black "Toczek, Grzegorz"]
[WhiteFideId "1632051"]
[BlackFideId "1106457"]
[WhiteElo "2409"]
[BlackElo "2220"]
[Result "1-0"]
[Round "05"]
[TimeControl "900+10"]
[Date "2021.12.26"]
[WhiteClock "0:09:56"]
[BlackClock "0:07:20"]

1. d4 {[%clk 0:09:56]}  Nf6 {[%clk 0:07:20]} 2. Nf3 {[%clk 0:09:56]}  e6 {[%clk 0:07:20]} 3. Bf4 {[%clk 0:09:56]}  b6 {[%clk 0:07:20]} 4. e3 {[%clk 0:09:56]}  Bb7 {[%clk 0:07:20]} 5. Bd3 {[%clk 0:09:56]}  Bd6 {[%clk 0:07:20]} 6. O-O {[%clk 0:09:56]}  O-O {[%clk 0:07:20]} 7. Qe2 {[%clk 0:09:56]}  Bxf4 {[%clk 0:07:20]} 8. exf4 {[%clk 0:09:56]}  d6 {[%clk 0:07:20]} 9. c4 {[%clk 0:09:56]}  c5 {[%clk 0:07:20]} 10. Nc3 {[%clk 0:09:56]}  Nbd7 {[%clk 0:07:20]} 11. Rad1 {[%clk 0:09:56]}  Qe7 {[%clk 0:07:20]} 12. Bb1 {[%clk 0:09:56]}  Rfe8 {[%clk 0:07:20]} 13. Rfe1 {[%clk 0:09:56]}  Qf8 {[%clk 0:07:20]} 14. Nb5 {[%clk 0:09:56]}  Rec8 {[%clk 0:07:20]} 15. dxc5 {[%clk 0:09:56]}  dxc5 {[%clk 0:07:20]} 16. Ne5 {[%clk 0:09:56]}  Nb8 {[%clk 0:07:20]} 17. Nd6 {[%clk 0:09:56]}  Rc7 {[%clk 0:07:20]} 18. Nxb7 {[%clk 0:09:56]}  Rxb7 {[%clk 0:07:20]} 19. Qf3 {[%clk 0:09:56]} 1-0


[Site "http://www.Chess.com"]

[Event "FIDE World Rapid Chess Championship 2021"]
[White "Kadric, Denis"]
[Black "Carlsson, Pontus"]
[WhiteFideId "14403803"]
[BlackFideId "1705814"]
[WhiteElo "2542"]
[BlackElo "2436"]
[Result "1/2-1/2"]
[Round "05"]
[TimeControl "900+10"]
[Date "2021.12.26"]
[WhiteClock "0:00:34"]
[BlackClock "0:00:27"]

1. d3 {[%clk 0:00:34]}  d5 {[%clk 0:00:27]} 2. Nd2 {[%clk 0:00:34]}  Nf6 {[%clk 0:00:27]} 3. e4 {[%clk 0:00:34]}  c6 {[%clk 0:00:27]} 4. Ngf3 {[%clk 0:00:34]}  Bg4 {[%clk 0:00:27]} 5. h3 {[%clk 0:00:34]}  Bxf3 {[%clk 0:00:27]} 6. Qxf3 {[%clk 0:00:34]}  e6 {[%clk 0:00:27]} 7. g3 {[%clk 0:00:34]}  Nbd7 {[%clk 0:00:27]} 8. Bg2 {[%clk 0:00:34]}  Bc5 {[%clk 0:00:27]} 9. O-O {[%clk 0:00:34]}  O-O {[%clk 0:00:27]} 10. Qe2 {[%clk 0:00:34]}  dxe4 {[%clk 0:00:27]} 11. dxe4 {[%clk 0:00:34]}  e5 {[%clk 0:00:27]} 12. a4 {[%clk 0:00:34]}  a5 {[%clk 0:00:27]} 13. Nc4 {[%clk 0:00:34]}  Re8 {[%clk 0:00:27]} 14. Bd2 {[%clk 0:00:34]}  Qc7 {[%clk 0:00:27]} 15. h4 {[%clk 0:00:34]}  Nf8 {[%clk 0:00:27]} 16. c3 {[%clk 0:00:34]}  Ne6 {[%clk 0:00:27]} 17. Kh1 {[%clk 0:00:34]}  Bf8 {[%clk 0:00:27]} 18. Be3 {[%clk 0:00:34]}  Nc5 {[%clk 0:00:27]} 19. Qc2 {[%clk 0:00:34]}  Ng4 {[%clk 0:00:27]} 20. Bg5 {[%clk 0:00:34]}  h6 {[%clk 0:00:27]} 21. Bc1 {[%clk 0:00:34]}  b5 {[%clk 0:00:27]} 22. axb5 {[%clk 0:00:34]}  cxb5 {[%clk 0:00:27]} 23. Ne3 {[%clk 0:00:34]}  Nxe3 {[%clk 0:00:27]} 24. Bxe3 {[%clk 0:00:34]}  Ne6 {[%clk 0:00:27]} 25. Rad1 {[%clk 0:00:34]}  b4 {[%clk 0:00:27]} 26. Rd5 {[%clk 0:00:34]}  a4 {[%clk 0:00:27]} 27. Ra1 {[%clk 0:00:34]}  a3 {[%clk 0:00:27]} 28. bxa3 {[%clk 0:00:34]}  Rxa3 {[%clk 0:00:27]} 29. Rxa3 {[%clk 0:00:34]}  bxa3 {[%clk 0:00:27]} 30. Qa4 {[%clk 0:00:34]}  Rc8 {[%clk 0:00:27]} 31. Bd2 {[%clk 0:00:34]}  Qb6 {[%clk 0:00:27]} 32. Be3 {[%clk 0:00:34]}  Qb2 {[%clk 0:00:27]} 33. Rxe5 {[%clk 0:00:34]}  Qxc3 {[%clk 0:00:27]} 34. Ra5 {[%clk 0:00:34]}  Qb4 {[%clk 0:00:27]} 35. Bh3 {[%clk 0:00:34]}  Qxa4 {[%clk 0:00:27]} 36. Rxa4 {[%clk 0:00:34]}  Rc2 {[%clk 0:00:27]} 37. Bf1 {[%clk 0:00:34]}  Nc5 {[%clk 0:00:27]} 38. Rxa3 {[%clk 0:00:34]}  Nxe4 {[%clk 0:00:27]} 39. Ra8 {[%clk 0:00:34]}  Nxf2+ {[%clk 0:00:27]} 40. Kg1 {[%clk 0:00:34]}  Ng4 {[%clk 0:00:27]} 41. Bf4 {[%clk 0:00:34]}  Rc6 {[%clk 0:00:27]} 42. Kg2 {[%clk 0:00:34]}  Rc2+ {[%clk 0:00:27]} 43. Kg1 {[%clk 0:00:34]}  Rc6 {[%clk 0:00:27]} 44. Kg2 {[%clk 0:00:34]}  Rc2+ {[%clk 0:00:27]} 45. Kg1 {[%clk 0:00:34]}  Rc6 {[%clk 0:00:27]} 1/2-1/2


[Site "http://www.Chess.com"]